bitfinex/quotes_SOLUSD_20251124
["timestamp","ask_amount","ask_price","bid_price","bid_amount"]
[1763952430345,0.72,133.19,133.16,7.50966203]
[1763952430546,1e-08,133.2,133.18,10.39206898]
[1763952430745,0.72000001,133.2,133.18,10.39206898]
[1763952431964,0.72000001,133.2,133.18,17.90070089]
[1763952432173,1e-08,133.2,133.19,11.06206898]
[1763952432360,0.72000001,133.2,133.19,72.03200187]
[1763952432747,0.72000001,133.2,133.19,61.63993289]
[1763952433757,1e-08,133.2,133.19,72.03200187]
[1763952433964,0.72,133.23,133.19,80.21007304]
[1763952434173,0.72,133.23,133.21,10.39206898]
[1763952434372,0.15923323,133.22,133.21,10.39206898]
[1763952434670,0.15923323,133.22,133.2,10.39206898]
[1763952434862,0.87923323,133.22,133.2,10.39206898]
[1763952435067,0.87923323,133.22,133.19,61.63993289]
[1763952436870,11.27130221,133.22,133.19,61.63993289]
[1763952437273,0.67,133.21,133.19,61.63993289]
[1763952439984,10.39206898,133.2,133.13,10.39206898]
[1763952440203,10.39206898,133.2,133.14,10.39206898]
[1763952440496,0.67,133.19,133.13,18.12096]
[1763952440668,0.67,133.19,133.14,10.39206898]
[1763952440863,11.06206898,133.19,133.1,0.67]
[1763952441058,10.39206898,133.17,133.08,0.67]
[1763952441260,3.36,133.17,133.07,0.77]
[1763952441489,0.67,133.16,133.07,0.77]
[1763952441662,10.39206898,133.14,133.07,0.77]
[1763952441865,10.39206898,133.14,133.07,29.28302898]
[1763952442192,0.67,133.13,133.08,10.39206898]
[1763952442394,11.06206898,133.13,133.07,10.49206898]
[1763952442596,6.78877339,133.12,133.07,0.1]
[1763952442809,0.67,133.12,133.07,0.1]
[1763952442968,0.67,133.11,133.07,6.88877339]
[1763952443166,18.12096,133.15,133.08,6.78877339]
[1763952443499,0.67,133.13,133.09,6.78877339]
[1763952443680,0.67,133.13,133.08,14.97302831]
[1763952444007,0.67,133.13,133.09,6.78877339]
[1763952444168,0.67,133.13,133.08,7.51425492]
[1763952444503,18.12096,133.12,133.07,0.1]
[1763952445002,0.67,133.11,133.08,6.78877339]
[1763952445503,4.03,133.13,133.08,0.67]
[1763952445706,0.67,133.12,133.08,6.78877339]
[1763952445893,4.03,133.15,133.1,6.78877339]
[1763952446209,3.36,133.15,133.11,6.78877339]
[1763952446507,3.36,133.15,133.12,6.78877339]
[1763952446690,3.36,133.15,133.09,0.67]
[1763952446895,4.03,133.15,133.11,6.78877339]
[1763952447072,4.03,133.15,133.11,7.45877339]
[1763952447569,0.67,133.14,133.08,45.09078797]
[1763952447769,0.67,133.14,133.1,14.30159306]
[1763952449298,0.67,133.14,133.1,14.97159306]
[1763952449602,0.67,133.14,133.1,14.97177415]
[1763952449784,0.67,133.14,133.1,7.45877339]
[1763952449975,0.67,133.14,133.11,18.12096]
[1763952450795,0.67,133.14,133.09,24.90973339]
[1763952450995,0.67,133.14,133.09,18.12096]
[1763952451213,6.78877339,133.13,133.09,18.12096]
[1763952451679,0.67,133.12,133.07,18.22096]
[1763952452184,0.67,133.12,133.07,87.10973339]
[1763952452584,0.67,133.12,133.07,62.2]
[1763952452798,7.45877339,133.12,133.07,62.2]
[1763952453174,0.67,133.11,133.07,62.2]
[1763952454287,0.14014438,133.08,133.07,62.2]
[1763952454485,0.14014438,133.08,133.07,68.98877339]
[1763952454780,0.14014438,133.08,133.07,62.2]
[1763952456204,0.14014438,133.08,133.07,68.98877339]
[1763952456410,0.14014438,133.08,133.07,77.1736152]
[1763952456607,0.14014438,133.08,133.07,76.5036152]
[1763952457801,0.14014438,133.08,133.07,77.1736152]
[1763952458009,0.14014438,133.08,133.07,69.65877339]
[1763952458988,0.14014438,133.08,133.07,77.1736152]
[1763952459506,0.14580413,133.09,133.08,69.47413274]
[1763952459716,0.14580413,133.09,133.08,76.26290613]
[1763952460508,0.14580413,133.09,133.08,68.74862901]
[1763952460714,0.14580413,133.09,133.08,61.95985562]
[1763952461097,0.81580413,133.09,133.08,61.95985562]
[1763952463592,0.81580413,133.09,133.07,0.1]
[1763952464007,0.14580413,133.09,133.07,8.28471522]
[1763952464213,6.64669947,133.13,133.07,7.61471522]
[1763952464413,0.67,133.12,133.07,7.61471522]
[1763952464916,0.67,133.12,133.07,0.1]
[1763952465108,7.45877339,133.12,133.07,0.1]
[1763952465414,0.67,133.12,133.07,0.1]
[1763952465615,0.67,133.11,133.07,0.1]
[1763952466205,0.13986699,133.15,133.07,0.81]
[1763952466415,7.45877339,133.13,133.07,0.1]
[1763952466723,6.78877339,133.12,133.07,0.1]
[1763952467023,7.45877339,133.12,133.07,0.1]
[1763952467220,0.67,133.11,133.07,0.1]
[1763952470614,21.3982067,133.11,133.07,0.1]
[1763952470994,0.67,133.1,133.07,0.1]
[1763952471928,2.6072467,133.09,133.07,0.1]
[1763952472130,18.12096,133.11,133.07,0.1]
[1763952472290,18.79096,133.11,133.07,0.1]
[1763952472497,0.67,133.11,133.07,2.7072467]
[1763952472917,3.36,133.12,133.07,65.5172467]
[1763952473113,4.03,133.12,133.07,62.91]
[1763952473405,0.67,133.11,133.07,62.2]
[1763952474203,0.14264162,133.08,133.07,62.2]
[1763952474412,0.14264162,133.08,133.07,62.91]
[1763952474608,0.14264162,133.08,133.07,70.42484181]
[1763952475530,0.14264162,133.08,133.07,73.03208851]
[1763952477031,0.14264162,133.08,133.07,10.93208851]
[1763952477237,0.14264162,133.08,133.07,0.1]
[1763952478014,0.14264162,133.08,133.07,10.93208851]
[1763952478531,0.14264162,133.08,133.07,10.22208851]
[1763952479122,0.14264162,133.08,133.07,10.93208851]
[1763952479940,0.14264162,133.08,133.07,10.22208851]
[1763952480135,0.14264162,133.08,133.07,0.1]
[1763952480928,0.14264162,133.08,133.07,3.4172467]
[1763952481147,0.14685032,133.12,133.11,18.12096]
[1763952481454,0.14685032,133.12,133.11,20.7282067]
[1763952481625,0.14685032,133.12,133.11,21.4382067]
[1763952481816,0.13637621,133.15,133.11,86.75556508]
[1763952482014,0.13637621,133.15,133.12,3.3172467]
[1763952482244,0.13637621,133.15,133.12,10.82926593]
[1763952483127,0.13637621,133.15,133.12,72.78662431]
[1763952483324,0.82165146,133.13,133.09,61.95735838]
[1763952483550,0.15165146,133.13,133.11,2.6072467]
[1763952484547,0.15165146,133.13,133.12,2.6072467]
[1763952484717,0.15165146,133.13,133.12,3.3172467]
[1763952484915,0.15165146,133.13,133.12,65.27460508]
[1763952485237,0.14733878,133.16,133.12,85.29281178]
[1763952485412,0.15747792,133.17,133.12,85.29281178]
[1763952485413,0.15747792,133.17,133.15,20.7282067]
[1763952485615,0.15747792,133.17,133.16,2.6072467]
[1763952485839,0.15747792,133.17,133.16,3.1772467]
[1763952486033,0.15747792,133.17,133.16,2.6072467]
[1763952486234,0.15747792,133.17,133.16,3.1772467]
[1763952486442,0.15747792,133.17,133.16,10.68700939]
[1763952488848,0.15747792,133.17,133.16,10.11700939]
[1763952490057,0.15747792,133.17,133.14,3.93]
[1763952490353,0.15747792,133.17,133.15,2.6072467]
[1763952490540,0.15747792,133.17,133.15,90.19575733]
[1763952490862,0.82747792,133.17,133.15,80.07831838]
[1763952491262,0.82747792,133.17,133.15,82.68556508]
[1763952491571,0.15747792,133.17,133.15,90.19579073]
[1763952492574,0.15747792,133.17,133.16,10.68700939]
[1763952492730,0.15747792,133.17,133.16,14.04700939]
[1763952493860,2.6072467,133.26,133.16,14.04700939]
[1763952493861,0.67,133.24,133.19,18.12096]
[1763952494047,0.67,133.24,133.19,20.7282067]
[1763952494362,0.1603649,133.2,133.19,18.69096]
[1763952494536,0.1603649,133.2,133.19,8.07807117]
[1763952494739,0.1603649,133.2,133.19,26.19903117]
[1763952495144,0.14843271,133.21,133.2,61.79699348]
[1763952495366,0.14843271,133.21,133.2,65.72699348]
[1763952495542,0.14843271,133.21,133.2,68.33424018]
[1763952495853,0.15759109,133.22,133.2,121.69223763]
[1763952496056,0.15759109,133.22,133.21,3.1772467]
[1763952496637,0.15759109,133.22,133.21,14.84644105]
[1763952497468,0.15759109,133.22,133.21,32.39740105]
[1763952497675,0.15759109,133.22,133.21,14.27644105]
[1763952498546,0.15759109,133.22,133.21,6.76949713]
[1763952499053,0.15759109,133.22,133.21,8.09019152]
[1763952499257,0.15759109,133.22,133.21,7.52019152]
[1763952499454,0.15759109,133.22,133.21,6.76949713]
[1763952499858,0.15759109,133.22,133.2,32.39794798]
[1763952500075,0.15759109,133.22,133.21,6.76949713]
[1763952500576,0.83759109,133.22,133.2,14.27692853]
[1763952501082,0.83759109,133.22,133.2,76.07391799]
[1763952501453,0.83759109,133.22,133.2,61.79699348]
[1763952501966,0.83759109,133.22,133.17,6.76949713]
[1763952503093,0.83759109,133.22,133.16,68.56649061]
[1763952503802,6.76949713,133.21,133.15,24.89045713]
[1763952503973,6.76949713,133.21,133.15,6.76949713]
[1763952504291,0.68,133.2,133.15,6.76949713]
[1763952504673,0.68,133.2,133.15,10.38680294]
[1763952504864,0.68,133.2,133.14,36.89755665]
[1763952505059,0.68,133.2,133.15,7.51020298]
[1763952505867,0.68,133.2,133.14,36.01852294]
[1763952506885,0.68,133.2,133.15,10.38680294]
[1763952507090,0.68,133.2,133.14,28.50776294]
[1763952507264,0.68,133.2,133.14,54.7957224]
[1763952507466,0.68,133.2,133.15,10.38680294]
[1763952507985,0.68,133.2,133.14,25.63169249]
[1763952507986,10.38680294,133.19,133.12,17.89865675]
[1763952508363,0.68,133.18,133.12,17.89865675]
[1763952508662,29.18776294,133.18,133.12,10.38680294]
[1763952508985,29.18776294,133.18,133.11,25.633355]
[1763952509169,0.68,133.17,133.11,36.02015794]
[1763952509894,0.68,133.17,133.11,28.50776294]
[1763952510101,0.68,133.17,133.11,36.02034567]
[1763952510892,0.68,133.17,133.12,10.38680294]
[1763952511293,0.68,133.17,133.12,17.8986947]
[1763952511677,0.68,133.17,133.11,36.02018014]
[1763952512001,0.68,133.17,133.11,28.50776294]
[1763952512789,11.06680294,133.17,133.11,28.50776294]
[1763952513303,0.68,133.16,133.11,36.020242]
[1763952514305,0.16291698,133.12,133.11,36.020242]
[1763952514508,0.13610022,133.13,133.12,61.6340765]
[1763952514694,0.13610022,133.13,133.12,75.95087944]
[1763952515503,0.14116019,133.15,133.14,18.12096]
[1763952515722,0.14116019,133.15,133.14,192.14183944]
[1763952516004,0.14116019,133.15,133.14,192.56183944]
[1763952516794,0.14116019,133.15,133.14,200.07273023]
[1763952520217,0.14116019,133.15,133.14,199.65273023]
[1763952520390,0.14116019,133.15,133.14,203.01273023]
[1763952520589,0.14116019,133.15,133.14,203.43273023]
[1763952521507,0.15322249,133.16,133.15,61.49291631]
[1763952521692,0.83322249,133.16,133.15,61.49291631]
[1763952523810,0.83322249,133.16,133.13,18.12096]
[1763952524183,0.83322249,133.16,133.12,61.49291631]
[1763952524993,0.83322249,133.16,133.11,17.89904198]
[1763952525207,0.83322249,133.16,133.13,18.12096]
[1763952526015,0.83322249,133.16,133.13,7.51133169]
[1763952528414,0.83322249,133.16,133.13,17.89813463]
[1763952529306,0.83322249,133.16,133.14,10.38680294]
[1763952531022,0.16356571,133.17,133.16,61.33969382]
[1763952531201,0.16356571,133.17,133.16,79.65625945]
[1763952532110,1e-08,133.18,133.17,0.42]
[1763952532297,1e-08,133.18,133.17,75.50649676]
[1763952533425,1e-08,133.18,133.17,83.01569552]
[1763952534425,0.14621212,133.18,133.17,83.01569552]
[1763952534622,0.14621212,133.18,133.17,82.59569552]
[1763952535005,0.14621212,133.18,133.17,83.01569552]
[1763952535930,0.14621212,133.18,133.17,79.65569552]
[1763952536425,0.14621211,133.18,133.17,79.65569552]
[1763952540931,0.84621211,133.18,133.17,163.33969382]
[1763952541128,0.14621211,133.18,133.17,181.23569552]
[1763952541433,0.84621211,133.18,133.17,199.35665552]
[1763952541628,0.84621211,133.18,133.17,181.46065382]
[1763952541933,0.14621211,133.18,133.17,181.46065382]
[1763952542123,0.84621211,133.18,133.17,191.84745676]
[1763952542328,0.84621211,133.18,133.17,79.46065382]
[1763952542646,0.84621211,133.18,133.15,61.33969382]
[1763952542930,0.84621211,133.18,133.15,68.84997968]
[1763952543246,0.84621211,133.18,133.15,61.33969382]
[1763952543531,11.23301505,133.18,133.12,71.72649676]
[1763952543725,11.23301505,133.18,133.12,79.2384756]
[1763952543929,0.7,133.17,133.12,79.2384756]
[1763952545538,0.7,133.17,133.13,10.38680294]
[1763952546639,0.7,133.17,133.12,61.33969382]
[1763952547049,11.08680294,133.17,133.12,61.33969382]
[1763952547526,0.7,133.16,133.12,61.33969382]
[1763952548118,0.7,133.16,133.13,10.38680294]
[1763952548322,0.7,133.16,133.14,10.38680294]
[1763952548521,0.7,133.16,133.14,71.72649676]
[1763952550419,0.7,133.16,133.14,61.33969382]
[1763952554322,0.15798299,133.15,133.14,61.33969382]
[1763952554624,0.85798299,133.15,133.14,61.33969382]
[1763952556449,0.15798299,133.15,133.14,79.23738755]
[1763952556637,0.15798299,133.15,133.14,79.65738755]
[1763952556811,0.15798299,133.15,133.14,79.23738755]
[1763952557014,0.15798299,133.15,133.14,79.65738755]
[1763952557433,0.15798299,133.15,133.14,98.52943662]
[1763952557618,0.15798299,133.15,133.14,98.10943662]
[1763952557823,0.15798299,133.15,133.14,98.52943662]
[1763952558545,0.15798299,133.15,133.14,87.72263368]
[1763952558722,0.86798299,133.15,133.14,61.33969382]
[1763952558923,0.86798299,133.15,133.07,10.62575354]
[1763952559129,22.18736043,133.14,133.07,3.11102788]
[1763952559321,4.06640043,133.13,133.07,0.1]
[1763952559516,0.71,133.13,133.08,4.06640043]
[1763952559737,0.71,133.12,133.07,25.73569097]
[1763952560048,0.71,133.12,133.08,4.06640043]
[1763952560620,0.71,133.12,133.08,10.39779187]
[1763952560826,0.71,133.12,133.07,28.61875187]
[1763952561428,0.71,133.12,133.08,10.39779187]
[1763952562141,11.10779187,133.12,133.07,0.1]
[1763952562343,29.22875187,133.12,133.07,0.1]
[1763952562539,4.07,133.11,133.07,0.1]
[1763952563140,0.71,133.1,133.07,0.1]
[1763952564647,0.71,133.1,133.08,6.78685386]
[1763952565045,0.71,133.11,133.08,6.78685386]
[1763952565342,0.71,133.12,133.08,6.78685386]
[1763952565547,0.71,133.12,133.1,6.78685386]
[1763952565926,0.71,133.12,133.08,61.75969382]
[1763952566118,0.71,133.12,133.1,6.78685386]
[1763952567333,0.71,133.12,133.1,14.299891]
[1763952567939,0.71,133.12,133.1,7.51303714]
[1763952568343,0.71,133.12,133.09,14.30048617]
[1763952569354,0.71,133.12,133.09,75.64017999]
[1763952570228,0.15798299,133.15,133.1,6.78685386]
[1763952570538,0.71,133.13,133.1,170.12654768]
[1763952570730,0.15798299,133.15,133.11,6.78685386]
[1763952570928,0.86798299,133.15,133.12,6.78685386]
[1763952571249,0.86798299,133.15,133.11,163.33969382]
[1763952571426,0.86798299,133.15,133.12,6.78685386]
[1763952571830,0.15798299,133.15,133.14,6.78685386]
[1763952572043,0.15798299,133.15,133.14,86.24750768]
[1763952572348,0.15798299,133.15,133.14,25.32781386]
[1763952572550,0.13715897,133.17,133.14,78.26781386]
[1763952572751,0.1477311,133.18,133.16,6.78685386]
[1763952572942,0.14385795,133.19,133.17,28.68781386]
[1763952573139,0.14385795,133.19,133.18,24.90781386]
[1763952573450,0.14385795,133.19,133.18,18.12096]
[1763952573647,0.14385795,133.19,133.18,24.90781386]
[1763952573832,0.14385795,133.19,133.18,32.41644879]
[1763952574153,0.14385795,133.19,133.18,24.90781386]
[1763952574355,0.28659556,133.19,133.18,24.90781386]
[1763952574740,0.28659556,133.19,133.18,32.41644879]
[1763952574935,1.01223793,133.2,133.18,32.68644879]
[1763952574936,0.30223793,133.2,133.18,32.68644879]
[1763952575138,0.03223793,133.2,133.19,13.57370772]
[1763952575347,0.03223793,133.2,133.19,14.29492503]
[1763952575543,0.28908673,133.21,133.2,13.57370772]
[1763952575726,0.28908673,133.21,133.2,16.93370772]
[1763952576132,0.28908673,133.21,133.2,10.14685386]
[1763952576438,0.28908673,133.21,133.2,6.78685386]
[1763952576439,0.14384541,133.21,133.2,6.78685386]
[1763952576642,0.14384541,133.21,133.2,24.90781386]
[1763952577842,0.85384541,133.21,133.2,80.22096]
[1763952578044,0.85384541,133.21,133.2,62.1]
[1763952578451,0.85384541,133.21,133.19,62.1]
[1763952580555,0.15159748,133.22,133.21,61.95615459]
[1763952580735,0.15159748,133.22,133.21,170.74300845]
[1763952581553,0.15159748,133.22,133.21,178.24995237]
[1763952581868,0.86159748,133.22,133.21,182.07711459]
[1763952583153,0.86159748,133.22,133.21,80.07711459]
[1763952583373,0.86159748,133.22,133.21,61.95615459]
[1763952584963,0.86159748,133.22,133.21,61.23615459]
[1763952585940,7.64845134,133.22,133.21,61.23615459]
[1763952586344,7.64845134,133.22,133.16,61.23615459]
[1763952586547,0.72,133.21,133.16,61.23615459]
[1763952587265,6.78685386,133.2,133.16,61.23615459]
[1763952587566,6.78685386,133.2,133.14,79.35711459]
[1763952587751,0.72,133.19,133.14,79.35711459]
[1763952588655,0.72,133.19,133.14,93.65476178]
[1763952589066,0.72,133.19,133.14,86.14396845]
[1763952589367,0.72,133.19,133.14,79.35711459]
[1763952589862,7.50685386,133.19,133.12,68.02300845]
[1763952590053,7.50685386,133.19,133.12,86.86909729]
[1763952590254,0.72,133.18,133.13,6.78685386]
[1763952590451,0.72,133.18,133.15,18.12096]
[1763952591450,6.93845134,133.22,133.15,25.62781386]
[1763952591647,0.72,133.21,133.16,14.29640972]
[1763952591848,0.72,133.21,133.16,75.53256431]
[1763952592048,0.72,133.21,133.16,68.74571045]
[1763952592460,0.72,133.21,133.16,75.53256431]
[1763952593369,0.72,133.21,133.17,6.78685386]
[1763952594070,0.15159748,133.22,133.18,6.78685386]
[1763952594265,0.87159748,133.22,133.18,68.02300845]
[1763952594579,0.15397151,133.19,133.18,61.95615459]
[1763952594870,0.15397151,133.19,133.18,68.74300845]
[1763952595048,0.15397151,133.19,133.18,76.25164338]
[1763952595448,0.15397151,133.19,133.18,80.34250687]
[1763952595668,0.15397151,133.19,133.18,182.34250687]
[1763952595869,0.15397151,133.19,133.18,184.59995383]
[1763952597471,0.15397151,133.19,133.18,181.59164338]
[1763952597773,0.15397151,133.19,133.18,180.87164338]
[1763952598075,0.15397151,133.19,133.18,178.25164338]
[1763952598248,0.87397151,133.19,133.17,61.23615459]
[1763952598448,0.15397151,133.19,133.17,75.53201672]
[1763952600768,0.15397151,133.19,133.18,24.90781386]
[1763952600968,0.15397151,133.19,133.18,25.62781386]
[1763952601352,0.1490271,133.2,133.19,61.08218308]
[1763952601657,0.1490271,133.2,133.19,76.84791522]
[1763952602170,0.1490271,133.2,133.19,70.06106136]
[1763952602363,0.1490271,133.2,133.19,76.84791522]
[1763952602751,0.13879886,133.22,133.2,7.50685386]
[1763952602953,0.13879886,133.22,133.21,10.87754825]
[1763952603161,0.13879886,133.22,133.21,11.59754825]
[1763952603560,0.13879886,133.22,133.21,15.76449217]
[1763952603856,0.85879886,133.22,133.2,62.1]
[1763952604057,0.85879886,133.22,133.21,24.90781386]
[1763952604273,0.85879886,133.22,133.21,18.12096]
[1763952605166,0.85879886,133.22,133.2,18.12096]
[1763952605760,0.85879886,133.22,133.18,14.2954813]
[1763952605959,0.85879886,133.22,133.18,32.4164413]
[1763952606177,0.85879886,133.22,133.16,6.78685386]
[1763952606482,0.85879886,133.22,133.16,32.41757385]
[1763952606684,0.85879886,133.22,133.17,6.78685386]
[1763952607988,0.85879886,133.22,133.17,14.29587001]
[1763952608178,0.85879886,133.22,133.17,6.78685386]
[1763952608564,0.85879886,133.22,133.16,32.41756293]
[1763952608885,6.78685386,133.2,133.1,7.65017931]
[1763952609075,6.78685386,133.2,133.13,6.78685386]
[1763952609270,0.72,133.19,133.16,18.12096]
[1763952609900,0.72,133.21,133.16,33.13723755]
[1763952610062,0.72,133.21,133.17,6.78685386]
[1763952610263,0.72,133.21,133.16,33.13723755]
[1763952610462,7.50685386,133.21,133.16,18.12096]
[1763952610893,0.72,133.2,133.16,18.12096]
[1763952611271,0.72,133.2,133.16,80.22096]
[1763952612464,0.72,133.2,133.16,87.73071444]
[1763952612881,0.72,133.2,133.16,94.5175683]
[1763952613376,0.72,133.2,133.16,87.73071444]
[1763952613573,0.72,133.2,133.17,18.12096]
[1763952613878,0.72,133.2,133.14,80.22096]
[1763952614081,0.72,133.2,133.16,6.78685386]
[1763952614288,0.72,133.2,133.15,14.29717538]
[1763952614471,0.13730333,133.16,133.15,14.29717538]
[1763952614667,0.13730333,133.16,133.15,76.39717538]
[1763952615907,0.81730333,133.16,133.15,62.1]
[1763952617164,0.13730333,133.16,133.15,62.1]
[1763952617976,0.13730333,133.16,133.15,68.88685386]
[1763952619395,0.81730333,133.16,133.15,62.1]
[1763952620784,0.13730333,133.16,133.15,62.1]
[1763952621103,0.13730333,133.16,133.15,68.88685386]
[1763952621584,0.13730333,133.16,133.15,76.39718055]
[1763952621786,0.13730333,133.16,133.15,77.08718055]
[1763952626281,0.1534805,133.17,133.16,6.78685386]
[1763952626471,0.1534805,133.17,133.16,7.47685386]
[1763952626675,0.1534805,133.17,133.16,175.17047629]
[1763952626900,0.14443895,133.18,133.16,175.17047629]
[1763952626901,0.16304408,133.19,133.18,61.80208055]
[1763952627207,0.16304408,133.19,133.18,163.80208055]
[1763952627401,0.16304408,133.19,133.18,174.18255684]
[1763952627886,0.16304408,133.19,133.18,90.30351684]
[1763952628514,0.14902483,133.2,133.18,81.13205526]
[1763952628714,1e-08,133.21,133.19,36.99047629]
[1763952628873,1e-08,133.21,133.2,10.38047629]
[1763952629081,1e-08,133.21,133.2,11.82122704]
[1763952629691,1e-08,133.22,133.2,34.40122704]
[1763952629897,1e-08,133.22,133.21,11.07047629]
[1763952630118,1e-08,133.22,133.21,14.41047629]
[1763952630320,1e-08,133.22,133.21,21.91742021]
[1763952634314,0.13729157,133.22,133.21,21.91742021]
[1763952634735,0.14635528,133.26,133.25,60.91366999]
[1763952634949,0.14635528,133.26,133.25,173.29414628]
[1763952635304,0.14635528,133.26,133.25,173.98414628]
[1763952635508,0.14571031,133.28,133.25,36.99047629]
[1763952635812,1e-08,133.27,133.26,11.07047629]
[1763952636114,0.14761493,133.3,133.28,50.0]
[1763952636325,0.14761493,133.3,133.29,10.38047629]
[1763952636539,0.14761493,133.3,133.29,17.88291458]
[1763952638333,0.14761493,133.3,133.29,36.37387458]
[1763952638538,0.14761493,133.3,133.29,71.59291458]
[1763952638841,1e-08,133.31,133.29,71.22291458]
[1763952639134,1e-08,133.31,133.3,10.75047629]
[1763952640019,1e-08,133.31,133.3,18.25235175]
[1763952640215,1e-08,133.34,133.33,68.12096]
[1763952640406,0.2,133.36,133.35,60.91366999]
[1763952640602,0.88,133.36,133.34,10.38047629]
[1763952640805,0.88,133.36,133.35,18.12096]
[1763952641021,0.2,133.36,133.35,18.12096]
[1763952641418,0.88,133.36,133.35,18.12096]
[1763952641624,11.26047629,133.36,133.33,60.91366999]
[1763952641809,11.06047629,133.35,133.33,60.19366999]
[1763952642129,11.06047629,133.35,133.32,18.12096]
[1763952642328,0.68,133.34,133.32,18.12096]
[1763952646567,0.68,133.34,133.29,60.19366999]
[1763952646724,10.38047629,133.33,133.27,62.1]
[1763952646919,10.38047629,133.33,133.25,7.50469043]
[1763952647162,11.04047629,133.32,133.29,18.12096]
[1763952647531,10.38047629,133.35,133.29,18.12096]
[1763952647728,0.66,133.32,133.29,10.38047629]
[1763952647949,0.66,133.32,133.3,18.12096]
[1763952652566,0.66,133.32,133.3,80.22096]
[1763952654372,0.14787645,133.31,133.3,80.22096]
[1763952654755,0.80787645,133.31,133.3,80.22096]
[1763952659372,11.18835274,133.31,133.3,61.38]
[1763952659540,0.14787645,133.31,133.3,61.38]
[1763952659746,0.14787645,133.31,133.3,11.08047629]
[1763952659950,0.14787645,133.31,133.3,191.88143629]
[1763952660170,0.80787645,133.31,133.3,79.50096]
[1763952660477,0.14787645,133.31,133.3,61.38]
[1763952660651,0.80787645,133.31,133.28,18.12096]
[1763952660852,10.38047629,133.3,133.25,61.38]
[1763952661069,0.80787645,133.31,133.24,11.08047629]
[1763952661070,11.18835274,133.31,133.24,72.46047629]
[1763952661267,0.66,133.3,133.25,28.50143629]
[1763952661769,0.66,133.3,133.25,29.20143629]
[1763952662157,0.66,133.3,133.25,36.70610043]
[1763952662475,11.04047629,133.3,133.23,10.38047629]
[1763952662651,10.38047629,133.27,133.21,79.26735111]
[1763952662853,10.38047629,133.27,133.22,18.12096]
[1763952663060,0.66,133.26,133.22,18.12096]
[1763952663367,0.66,133.26,133.21,79.26735111]
[1763952663584,0.66,133.26,133.22,29.20143629]
[1763952664664,0.66,133.26,133.22,36.70732578]
[1763952665061,0.66,133.26,133.22,36.00732578]
[1763952665257,0.66,133.28,133.23,0.7]
[1763952665479,0.66,133.28,133.24,10.38047629]
[1763952665978,0.66,133.28,133.24,11.08047629]
[1763952666559,13.86835274,133.31,133.25,8.20436299]
[1763952666752,0.66,133.3,133.25,18.58483928]
[1763952667153,0.66,133.3,133.26,0.7]
[1763952667547,3.48787645,133.31,133.28,10.38047629]
[1763952667548,0.14787645,133.31,133.28,10.38047629]
[1763952667968,0.14787645,133.31,133.28,11.08047629]
[1763952668891,0.14787645,133.31,133.3,10.38047629]
[1763952669377,0.14787645,133.31,133.29,11.08047629]
[1763952670552,0.14787645,133.31,133.28,97.38410094]
[1763952670753,0.14787645,133.31,133.28,98.08410094]
[1763952671173,0.80787645,133.31,133.28,79.50096]
[1763952671669,0.80787645,133.31,133.28,61.38]
[1763952674072,11.18835274,133.31,133.28,61.38]
[1763952674469,0.14313352,133.29,133.25,7.50451618]
[1763952674675,0.14313352,133.29,133.25,171.60451618]
[1763952674974,0.14313352,133.29,133.25,181.98499247]
[1763952675178,0.14313352,133.29,133.26,11.08047629]
[1763952675355,0.14313352,133.29,133.27,10.38047629]
[1763952675679,0.82313352,133.29,133.26,10.38047629]
[1763952675880,0.82313352,133.29,133.25,174.48047629]
[1763952676080,0.82313352,133.29,133.25,164.1]
[1763952676281,0.82313352,133.29,133.26,0.72]
[1763952676576,0.14313352,133.29,133.26,11.10047629]
[1763952676757,0.14313352,133.29,133.28,17.88347749]
[1763952676961,0.14313352,133.29,133.28,80.70347749]
[1763952677169,0.14313352,133.29,133.28,81.45377761]
[1763952681568,0.14313352,133.29,133.28,18.12096]
[1763952682172,0.82313352,133.29,133.28,62.1]
[1763952682775,0.14313352,133.29,133.28,62.1]
[1763952684885,0.82313352,133.29,133.28,62.1]
[1763952685065,11.20360981,133.29,133.24,109.50516722]
[1763952685272,11.20360981,133.29,133.24,171.60516722]
[1763952685569,0.68,133.28,133.24,172.32516722]
[1763952685958,0.68,133.28,133.24,182.70564351]
[1763952686390,0.68,133.28,133.24,171.60516722]
[1763952686772,0.14313352,133.29,133.26,10.38047629]